[Event "Open Nuevo Centro. Jornada 1"]
[Site "Chess.com"]
[Date "2020.06.19"]
[Round "8"]
[White "Rabbani Perez, Ayoub "]
[Black "Cebri�n Granado, Guille"]
[Result "0-1"]
[WhiteElo "225"]
[BlackElo "464"]
[TimeControl "180+2"]
[EndTime "12:02:36 PDT"]
[Termination "Victoria de WinnieGuill por tiempo"]

1. d4 {[%clk 0:02:45.7]} 1... d5 {[%clk 0:03:00.5]} 2. Nc3 {[%clk 0:02:40.7]}
2... Nc6 {[%clk 0:03:01.9]} 3. Nxd5 {[%clk 0:02:35.7]} 3... Nf6 {[%clk
0:03:03.4]} 4. Nxf6+ {[%clk 0:02:32.7]} 4... exf6 {[%clk 0:03:02.7]} 5. d5
{[%clk 0:02:25.1]} 5... Qd6 {[%clk 0:03:04.2]} 6. Be3 {[%clk 0:02:17.2]} 6...
Ne7 {[%clk 0:03:03.5]} 7. Bd2 {[%clk 0:02:15.5]} 7... Nxd5 {[%clk 0:03:04.9]} 8.
e3 {[%clk 0:02:12.5]} 8... a5 {[%clk 0:03:06.2]} 9. Bxa5 {[%clk 0:02:07.4]} 9...
Ra6 {[%clk 0:03:07.6]} 10. Bd2 {[%clk 0:02:05]} 10... Ra5 {[%clk 0:03:07.4]} 11.
Bxa5 {[%clk 0:02:03.2]} 11... b6 {[%clk 0:03:08.6]} 12. Bd2 {[%clk 0:02:01.2]}
12... Be7 {[%clk 0:03:03.7]} 13. e4 {[%clk 0:01:58.6]} 13... f5 {[%clk
0:03:05.1]} 14. f3 {[%clk 0:01:50.7]} 14... Qe5 {[%clk 0:03:05.1]} 15. c3 {[%clk
0:01:41.8]} 15... Nf6 {[%clk 0:03:06.5]} 16. c4 {[%clk 0:01:38.8]} 16... h5
{[%clk 0:03:07.9]} 17. c5 {[%clk 0:01:34.2]} 17... Rh6 {[%clk 0:03:09.2]} 18.
cxb6 {[%clk 0:01:33.4]} 18... cxb6 {[%clk 0:03:06.9]} 19. Ba6 {[%clk 0:01:23]}
19... b5 {[%clk 0:03:07.2]} 20. Bxb5+ {[%clk 0:01:22.4]} 20... Qxb5 {[%clk
0:03:06.2]} 21. b3 {[%clk 0:01:19.7]} 21... Qe5 {[%clk 0:03:06.7]} 22. f4 {[%clk
0:01:17.6]} 22... Ba6 {[%clk 0:03:08.2]} 23. g3 {[%clk 0:01:15.9]} 23... Qxe4+
{[%clk 0:03:06.1]} 24. Ne2 {[%clk 0:01:10]} 24... Ng4 {[%clk 0:03:05.2]} 25. Be3
{[%clk 0:01:03.5]} 25... Rd6 {[%clk 0:03:06.7]} 26. Qc1 {[%clk 0:01:01.1]} 26...
Rd3 {[%clk 0:03:04.7]} 27. h3 {[%clk 0:00:46.2]} 27... Bd8 {[%clk 0:03:05.2]}
28. hxg4 {[%clk 0:00:45.4]} 28... fxg4 {[%clk 0:03:04.6]} 29. Rxh5 {[%clk
0:00:40.8]} 29... Ba5+ {[%clk 0:03:05.1]} 30. Rxa5 {[%clk 0:00:36.8]} 30... Ke7
{[%clk 0:03:01.1]} 31. Rxa6 {[%clk 0:00:36.5]} 31... f6 {[%clk 0:03:00.3]} 32.
Ra7+ {[%clk 0:00:36.2]} 32... Ke6 {[%clk 0:03:00.9]} 33. Ra6+ {[%clk 0:00:36.1]}
33... Kf5 {[%clk 0:03:01.5]} 34. Ra5+ {[%clk 0:00:36]} 34... Kg6 {[%clk
0:03:00.2]} 35. Ra8 {[%clk 0:00:30.6]} 35... f5 {[%clk 0:03:01.2]} 36. Ra6+
{[%clk 0:00:29.4]} 36... Kh5 {[%clk 0:03:00.3]} 37. Ra5 {[%clk 0:00:28.9]} 37...
g5 {[%clk 0:03:00.2]} 38. fxg5 {[%clk 0:00:25]} 38... Qxe3 {[%clk 0:02:51.1]}
39. Rxf5 {[%clk 0:00:18.5]} 39... Qe4 {[%clk 0:02:42.1]} 40. Rf8 {[%clk
0:00:16.5]} 40... Qe3 {[%clk 0:02:33.2]} 41. g6 {[%clk 0:00:15.7]} 41... Kxg6
{[%clk 0:02:33.2]} 42. Rh8 {[%clk 0:00:13.6]} 42... Kg7 {[%clk 0:02:32.8]} 43.
Ra8 {[%clk 0:00:10.9]} 43... Kg6 {[%clk 0:02:24.2]} 44. b4 {[%clk 0:00:06.3]}
44... Kg5 {[%clk 0:02:24.8]} 45. Rb8 {[%clk 0:00:05.3]} 45... Kf5 {[%clk
0:02:24.8]} 46. Rf8+ {[%clk 0:00:04.6]} 46... Ke4 {[%clk 0:02:26.3]} 47. Re8+
{[%clk 0:00:03.2]} 47... Kf3 {[%clk 0:02:24.2]} 0

[Event "Open Nuevo Centro. Jornada 1"]
[Site "Chess.com"]
[Date "2020.06.19"]
[Round "8"]
[White "Morata Briones, Carlos"]
[Black "M�s Ripoll, Vicente"]
[Result "1-0"]
[WhiteElo "780"]
[BlackElo "1071"]
[TimeControl "180+2"]
[EndTime "12:02:44 PDT"]
[Termination "Victoria de CarlosMorata por tiempo"]

1. e4 {[%clk 0:03:01.9]} 1... c5 {[%clk 0:03:00.5]} 2. Nf3 {[%clk 0:02:58.4]}
2... e6 {[%clk 0:03:01]} 3. Nc3 {[%clk 0:02:57]} 3... a6 {[%clk 0:03:01]} 4. Bc4
{[%clk 0:02:53.3]} 4... Nc6 {[%clk 0:03:01.1]} 5. a3 {[%clk 0:02:50.6]} 5... h6
{[%clk 0:02:56.4]} 6. d3 {[%clk 0:02:50.8]} 6... Nf6 {[%clk 0:02:54.2]} 7. h3
{[%clk 0:02:49]} 7... b5 {[%clk 0:02:48.6]} 8. Bb3 {[%clk 0:02:44.5]} 8... d6
{[%clk 0:02:43.6]} 9. a4 {[%clk 0:02:43.9]} 9... b4 {[%clk 0:02:35.5]} 10. Ne2
{[%clk 0:02:41.5]} 10... Be7 {[%clk 0:02:32.3]} 11. Bf4 {[%clk 0:02:32.7]} 11...
Bb7 {[%clk 0:02:26.3]} 12. c3 {[%clk 0:02:26.5]} 12... Qb6 {[%clk 0:02:14.2]}
13. Bc4 {[%clk 0:02:18.6]} 13... Na5 {[%clk 0:01:57.1]} 14. cxb4 {[%clk
0:01:58.8]} 14... Nxc4 {[%clk 0:01:45.2]} 15. dxc4 {[%clk 0:01:58.6]} 15...
Qxb4+ {[%clk 0:01:42.8]} 16. Bd2 {[%clk 0:01:57.5]} 16... Qxc4 {[%clk
0:01:33.5]} 17. Rc1 {[%clk 0:01:52.2]} 17... Qxe4 {[%clk 0:01:30.5]} 18. b4
{[%clk 0:01:48.2]} 18... Rc8 {[%clk 0:01:07.7]} 19. b5 {[%clk 0:01:40.9]} 19...
axb5 {[%clk 0:01:03.2]} 20. axb5 {[%clk 0:01:41.2]} 20... O-O {[%clk 0:00:58.8]}
21. Qc2 {[%clk 0:01:31.7]} 21... Qxc2 {[%clk 0:00:58.1]} 22. Rxc2 {[%clk
0:01:31.9]} 22... Nd5 {[%clk 0:00:51.8]} 23. Nf4 {[%clk 0:01:23.2]} 23... Nc7
{[%clk 0:00:51.8]} 24. Rb2 {[%clk 0:01:22.3]} 24... Ra8 {[%clk 0:00:49.1]} 25.
O-O {[%clk 0:01:20.7]} 25... Bg5 {[%clk 0:00:42.3]} 26. b6 {[%clk 0:01:19.1]}
26... Bxf3 {[%clk 0:00:40.7]} 27. bxc7 {[%clk 0:01:18.7]} 27... Bc6 {[%clk
0:00:27.2]} 28. Rb6 {[%clk 0:01:08.5]} 28... Bd7 {[%clk 0:00:23.6]} 29. Rxd6
{[%clk 0:01:07.2]} 29... Ba4 {[%clk 0:00:21]} 30. Rc6 {[%clk 0:01:03.2]} 30...
Rac8 {[%clk 0:00:21]} 31. Ra6 {[%clk 0:01:02]} 31... Rxc7 {[%clk 0:00:19.9]} 32.
Rxa4 {[%clk 0:01:02.5]} 32... Bxf4 {[%clk 0:00:20.7]} 33. Bxf4 {[%clk
0:01:02.5]} 33... Rfc8 {[%clk 0:00:21.8]} 34. Bxc7 {[%clk 0:01:02.8]} 34... Rxc7
{[%clk 0:00:21.7]} 35. Rd1 {[%clk 0:01:02.1]} 35... Kh7 {[%clk 0:00:21.4]} 36.
g4 {[%clk 0:01:01.3]} 1

[Event "Open Nuevo Centro. Jornada 1"]
[Site "Chess.com"]
[Date "2020.06.19"]
[Round "8"]
[White "Gutierrez Lacambra, Jose Antonio"]
[Black "Vorozbits Moisejevs, Daniels"]
[Result "1-0"]
[WhiteElo "1266"]
[BlackElo "930"]
[TimeControl "180+2"]
[EndTime "12:02:47 PDT"]
[Termination "Victoria de sygm2012 por jaque mate"]

1. c4 {[%clk 0:03:01.7]} 1... e5 {[%clk 0:03:01.9]} 2. g3 {[%clk 0:03:02.7]}
2... c6 {[%clk 0:02:58.5]} 3. Nf3 {[%clk 0:03:02.6]} 3... e4 {[%clk 0:02:54.9]}
4. Nd4 {[%clk 0:03:03.7]} 4... d5 {[%clk 0:02:54.9]} 5. d3 {[%clk 0:03:04.3]}
5... exd3 {[%clk 0:02:53.3]} 6. Qxd3 {[%clk 0:03:04.5]} 6... Nf6 {[%clk
0:02:48.2]} 7. Bg2 {[%clk 0:02:58.5]} 7... Bb4+ {[%clk 0:02:44.6]} 8. Bd2 {[%clk
0:02:58.8]} 8... Bxd2+ {[%clk 0:02:44.9]} 9. Nxd2 {[%clk 0:02:59.8]} 9... O-O
{[%clk 0:02:45.3]} 10. O-O {[%clk 0:02:55.7]} 10... Be6 {[%clk 0:02:41.4]} 11.
cxd5 {[%clk 0:02:56.1]} 11... cxd5 {[%clk 0:02:41]} 12. Nxe6 {[%clk 0:02:49.3]}
12... fxe6 {[%clk 0:02:38]} 13. Nf3 {[%clk 0:02:50.5]} 13... Nc6 {[%clk
0:02:35.3]} 14. a3 {[%clk 0:02:49.7]} 14... Qd6 {[%clk 0:02:35.3]} 15. Rac1
{[%clk 0:02:49.9]} 15... e5 {[%clk 0:02:31.8]} 16. Nd2 {[%clk 0:02:46.2]} 16...
e4 {[%clk 0:02:30.1]} 17. Qb5 {[%clk 0:02:40.1]} 17... Rab8 {[%clk 0:02:22.5]}
18. Rfd1 {[%clk 0:02:36.9]} 18... Nd4 {[%clk 0:02:17.2]} 19. Qc5 {[%clk
0:02:17.4]} 19... Qxc5 {[%clk 0:02:11.2]} 20. Rxc5 {[%clk 0:02:18.3]} 20...
Nxe2+ {[%clk 0:01:55.8]} 21. Kf1 {[%clk 0:02:18.9]} 21... Nd4 {[%clk 0:01:55.4]}
22. Rdc1 {[%clk 0:02:07.5]} 22... Nd7 {[%clk 0:01:46.9]} 23. Rc7 {[%clk
0:02:08.3]} 23... Nb6 {[%clk 0:01:38.7]} 24. Bh3 {[%clk 0:01:56.9]} 24... Nf3
{[%clk 0:01:26.9]} 25. Nxf3 {[%clk 0:01:53.7]} 25... exf3 {[%clk 0:01:27.6]} 26.
Be6+ {[%clk 0:01:52.1]} 26... Kh8 {[%clk 0:01:22.5]} 27. Rd1 {[%clk 0:01:49.4]}
27... Rfd8 {[%clk 0:01:04]} 28. h4 {[%clk 0:01:37.4]} 28... d4 {[%clk
0:00:58.5]} 29. Rd3 {[%clk 0:01:22.6]} 29... Rd6 {[%clk 0:00:44.2]} 30. Bg4
{[%clk 0:01:11]} 30... Rf8 {[%clk 0:00:35.3]} 31. Rxb7 {[%clk 0:01:09.3]} 31...
Nc4 {[%clk 0:00:24.6]} 32. Rxf3 {[%clk 0:00:41.8]} 32... Rxf3 {[%clk 0:00:19.4]}
33. Rb8+ {[%clk 0:00:38.1]} 33... Rd8 {[%clk 0:00:19.1]} 34. Rxd8+ {[%clk
0:00:39.2]} 34... Rf8 {[%clk 0:00:16.2]} 35. Rxf8# {[%clk 0:00:40.4]} 1

[Event "Open Nuevo Centro. Jornada 1"]
[Site "Chess.com"]
[Date "2020.06.19"]
[Round "8"]
[White "Zakharash, Georgii"]
[Black "Ursariu, Nikolas Victor"]
[Result "1-0"]
[WhiteElo "1055"]
[BlackElo "1170"]
[TimeControl "180+2"]
[EndTime "12:02:48 PDT"]
[Termination "Victoria de georgiizakharash por jaque mate"]

1. e4 {[%clk 0:03:01.9]} 1... e5 {[%clk 0:03:00.6]} 2. Nf3 {[%clk 0:03:02.1]}
2... Nc6 {[%clk 0:03:00.8]} 3. Bb5 {[%clk 0:03:02.5]} 3... d6 {[%clk 0:02:59.8]}
4. O-O {[%clk 0:03:02.4]} 4... Nf6 {[%clk 0:02:58.3]} 5. Re1 {[%clk 0:03:01.6]}
5... Be7 {[%clk 0:02:57.2]} 6. c3 {[%clk 0:03:01.9]} 6... O-O {[%clk 0:02:57.5]}
7. d4 {[%clk 0:03:02.8]} 7... exd4 {[%clk 0:02:57.1]} 8. cxd4 {[%clk 0:03:03.6]}
8... Bd7 {[%clk 0:02:53.5]} 9. d5 {[%clk 0:03:03.7]} 9... Ne5 {[%clk 0:02:48.3]}
10. Bxd7 {[%clk 0:02:59.9]} 10... Qxd7 {[%clk 0:02:50.2]} 11. Nxe5 {[%clk
0:03:00.6]} 11... dxe5 {[%clk 0:02:50.4]} 12. Nc3 {[%clk 0:03:01.2]} 12... Rad8
{[%clk 0:02:48.8]} 13. Bg5 {[%clk 0:02:56.7]} 13... h6 {[%clk 0:02:48]} 14. Bh4
{[%clk 0:02:55.6]} 14... c6 {[%clk 0:02:42.1]} 15. dxc6 {[%clk 0:02:49.7]} 15...
Qxd1 {[%clk 0:02:44]} 16. Rexd1 {[%clk 0:02:46.8]} 16... Rxd1+ {[%clk
0:02:43.7]} 17. Rxd1 {[%clk 0:02:46.9]} 17... bxc6 {[%clk 0:02:43.8]} 18. Bxf6
{[%clk 0:02:45.5]} 18... Bxf6 {[%clk 0:02:43.2]} 19. Rd6 {[%clk 0:02:42.1]}
19... Rc8 {[%clk 0:02:39.3]} 20. Rd7 {[%clk 0:02:40.6]} 20... a5 {[%clk
0:02:34.7]} 21. Ra7 {[%clk 0:02:38.2]} 21... a4 {[%clk 0:02:29.4]} 22. Rxa4
{[%clk 0:02:34]} 22... Rd8 {[%clk 0:02:30.5]} 23. Kf1 {[%clk 0:02:14.3]} 23...
Rd2 {[%clk 0:02:26.8]} 24. b3 {[%clk 0:02:12.5]} 24... Rc2 {[%clk 0:02:26.1]}
25. Ne2 {[%clk 0:02:03.8]} 25... c5 {[%clk 0:02:24.5]} 26. Rc4 {[%clk
0:02:03.5]} 26... Rd2 {[%clk 0:02:22.7]} 27. Ke1 {[%clk 0:01:43.3]} 27... Rxa2
{[%clk 0:02:22.1]} 28. Rxc5 {[%clk 0:01:44.1]} 28... Ra1+ {[%clk 0:02:21.9]} 29.
Rc1 {[%clk 0:01:40.4]} 29... Rxc1+ {[%clk 0:02:19.9]} 30. Nxc1 {[%clk
0:01:40.3]} 30... Bg5 {[%clk 0:02:19.5]} 31. Nd3 {[%clk 0:01:38.3]} 31... f6
{[%clk 0:02:17.9]} 32. f3 {[%clk 0:01:38.4]} 32... Kf7 {[%clk 0:02:18.5]} 33.
Ke2 {[%clk 0:01:38.3]} 33... Ke7 {[%clk 0:02:19]} 34. Kd1 {[%clk 0:01:37.5]}
34... Kd6 {[%clk 0:02:19]} 35. Kc2 {[%clk 0:01:38.6]} 35... Kc6 {[%clk
0:02:19.9]} 36. Kc3 {[%clk 0:01:37]} 36... Kb5 {[%clk 0:02:19.2]} 37. b4 {[%clk
0:01:35.8]} 37... g6 {[%clk 0:02:14.2]} 38. Nc5 {[%clk 0:01:35.1]} 38... f5
{[%clk 0:02:11.2]} 39. exf5 {[%clk 0:01:34.5]} 39... gxf5 {[%clk 0:02:11.9]} 40.
Nd7 {[%clk 0:01:30]} 40... e4 {[%clk 0:02:10.4]} 41. fxe4 {[%clk 0:01:21.2]}
41... fxe4 {[%clk 0:02:11.2]} 42. Nc5 {[%clk 0:01:18.7]} 42... e3 {[%clk
0:02:08]} 43. Nd3 {[%clk 0:01:18.7]} 43... Bf6+ {[%clk 0:02:06]} 44. Kc2 {[%clk
0:01:15.4]} 44... Bg5 {[%clk 0:02:03]} 45. Kd1 {[%clk 0:01:14.6]} 45... Kc4
{[%clk 0:02:01.7]} 46. Ke2 {[%clk 0:01:13]} 46... Kb5 {[%clk 0:01:52.3]} 47. g3
{[%clk 0:01:10.6]} 47... Kc4 {[%clk 0:01:51.5]} 48. h4 {[%clk 0:01:07.7]} 48...
Be7 {[%clk 0:01:49.8]} 49. Kxe3 {[%clk 0:01:07.3]} 49... Bxb4 {[%clk 0:01:50.7]}
50. Nxb4 {[%clk 0:01:06.3]} 50... Kxb4 {[%clk 0:01:52.6]} 51. Kf4 {[%clk
0:01:06.5]} 51... Kc5 {[%clk 0:01:54.5]} 52. Kf5 {[%clk 0:01:07.5]} 52... Kd6
{[%clk 0:01:56.4]} 53. Kg6 {[%clk 0:01:08.5]} 53... Ke7 {[%clk 0:01:57.7]} 54.
Kxh6 {[%clk 0:01:08.4]} 54... Kf6 {[%clk 0:01:58.4]} 55. Kh7 {[%clk 0:01:09.5]}
55... Kf7 {[%clk 0:01:59.1]} 56. g4 {[%clk 0:01:09.9]} 56... Kf6 {[%clk
0:01:59.3]} 57. g5+ {[%clk 0:01:09.8]} 57... Kf5 {[%clk 0:01:57.4]} 58. g6
{[%clk 0:01:10.8]} 58... Kg4 {[%clk 0:01:59.3]} 59. g7 {[%clk 0:01:12]} 59...
Kf4 {[%clk 0:01:59.6]} 60. g8=Q {[%clk 0:01:12.3]} 60... Ke4 {[%clk 0:01:59.5]}
61. Qf7 {[%clk 0:01:12.5]} 61... Kd4 {[%clk 0:01:58.3]} 62. Qe6 {[%clk
0:01:13.1]} 62... Kd3 {[%clk 0:01:58.6]} 63. Kg6 {[%clk 0:01:13.5]} 63... Kd2
{[%clk 0:01:59]} 64. h5 {[%clk 0:01:14.8]} 64... Kd1 {[%clk 0:01:59.7]} 65. h6
{[%clk 0:01:15.8]} 65... Kd2 {[%clk 0:02:00.5]} 66. h7 {[%clk 0:01:16.9]} 66...
Kd3 {[%clk 0:02:01.5]} 67. h8=Q {[%clk 0:01:17.6]} 67... Kc2 {[%clk 0:02:01.2]}
68. Qd8 {[%clk 0:01:18]} 68... Kc3 {[%clk 0:01:59.8]} 69. Qc6+ {[%clk
0:01:18.9]} 69... Kb4 {[%clk 0:02:01.1]} 70. Qdb6+ {[%clk 0:01:19.4]} 70... Ka3
{[%clk 0:02:00.5]} 71. Qa8# {[%clk 0:01:20.1]} 1

[Event "Open Nuevo Centro. Jornada 1"]
[Site "Chess.com"]
[Date "2020.06.19"]
[Round "8"]
[White "R�os Valle, Daniel "]
[Black "Teply Koutsky, David"]
[Result "1-0"]
[WhiteElo "1222"]
[BlackElo "1566"]
[TimeControl "180+2"]
[EndTime "12:02:50 PDT"]
[Termination "Victoria de danielrios010309 por abandono"]

1. e4 {[%clk 0:03:01.9]} 1... e6 {[%clk 0:03:00.6]} 2. d4 {[%clk 0:03:00.9]}
2... d5 {[%clk 0:03:01.6]} 3. Nc3 {[%clk 0:03:00.6]} 3... Bb4 {[%clk 0:03:01.6]}
4. e5 {[%clk 0:03:01]} 4... b6 {[%clk 0:03:02]} 5. Bd2 {[%clk 0:02:58.2]} 5...
Ne7 {[%clk 0:03:00.6]} 6. a3 {[%clk 0:02:58.5]} 6... Bxc3 {[%clk 0:03:01.3]} 7.
Bxc3 {[%clk 0:02:59.1]} 7... Nf5 {[%clk 0:03:02.5]} 8. Bd3 {[%clk 0:02:57.2]}
8... Ba6 {[%clk 0:03:02.6]} 9. Bxf5 {[%clk 0:02:55.7]} 9... exf5 {[%clk
0:03:03.2]} 10. Qh5 {[%clk 0:02:54.7]} 10... Qd7 {[%clk 0:02:50.8]} 11. Ne2
{[%clk 0:02:49.9]} 11... O-O {[%clk 0:02:50.6]} 12. Nf4 {[%clk 0:02:49.4]} 12...
c5 {[%clk 0:02:48.4]} 13. dxc5 {[%clk 0:02:44.3]} 13... bxc5 {[%clk 0:02:49.1]}
14. Qg5 {[%clk 0:02:34.9]} 14... h6 {[%clk 0:02:43.6]} 15. Qg3 {[%clk
0:02:34.3]} 15... g6 {[%clk 0:02:03.9]} 16. Nxg6 {[%clk 0:02:33]} 16... fxg6
{[%clk 0:02:04.6]} 17. Qxg6+ {[%clk 0:02:23.6]} 17... Qg7 {[%clk 0:02:04.9]} 18.
Qe6+ {[%clk 0:02:13.9]} 18... Qf7 {[%clk 0:01:58.1]} 19. Qxh6 {[%clk 0:02:03.3]}
19... d4 {[%clk 0:01:55.6]} 20. Bd2 {[%clk 0:01:59.7]} 20... Re8 {[%clk
0:01:45.1]} 21. f4 {[%clk 0:01:54.3]} 21... Qg7 {[%clk 0:01:43.7]} 22. Qxg7+
{[%clk 0:01:51.2]} 22... Kxg7 {[%clk 0:01:44.4]} 23. Kf2 {[%clk 0:01:48]} 23...
Nc6 {[%clk 0:01:32.6]} 24. Rhg1 {[%clk 0:01:45.1]} 24... Kf7 {[%clk 0:01:31.5]}
25. g4 {[%clk 0:01:44.4]} 25... fxg4 {[%clk 0:01:32]} 26. Rxg4 {[%clk
0:01:44.5]} 26... Rg8 {[%clk 0:01:32.9]} 27. Rag1 {[%clk 0:01:43.3]} 27... Ne7
{[%clk 0:01:25.2]} 28. h4 {[%clk 0:01:37.6]} 28... Raf8 {[%clk 0:01:03.1]} 29.
f5 {[%clk 0:01:25.5]} 29... Nxf5 {[%clk 0:00:56.7]} 30. e6+ {[%clk 0:01:24.3]}
30... Kxe6 {[%clk 0:00:42.8]} 31. Rxg8 {[%clk 0:01:16.7]} 31... Rxg8 {[%clk
0:00:23.1]} 32. Rxg8 {[%clk 0:01:15.2]} 32... Nxh4 {[%clk 0:00:23.9]} 33. Bg5
{[%clk 0:01:10.4]} 33... Kf7 {[%clk 0:00:20.7]} 34. Ra8 {[%clk 0:01:08.3]} 34...
Nf3 {[%clk 0:00:09.1]} 35. Rxa7+ {[%clk 0:01:03.3]} 35... Kg6 {[%clk 0:00:09.5]}
36. Kxf3 {[%clk 0:01:03.6]} 36... Kxg5 {[%clk 0:00:07.5]} 37. Rxa6 {[%clk
0:01:04.1]} 37... Kf5 {[%clk 0:00:07.8]} 38. Rc6 {[%clk 0:01:02.7]} 38... d3
{[%clk 0:00:06.9]} 39. cxd3 {[%clk 0:01:02]} 1

[Event "Open Nuevo Centro. Jornada 1"]
[Site "Chess.com"]
[Date "2020.06.19"]
[Round "8"]
[White "Grigorev, Artur "]
[Black "Cin� Asensio, Luca "]
[Result "1/2-1/2"]
[WhiteElo "857"]
[BlackElo "508"]
[TimeControl "180+2"]
[EndTime "12:03:28 PDT"]
[Termination "Tablas por repetición de movimientos"]

1. e4 {[%clk 0:03:01.9]} 1... e5 {[%clk 0:03:00]} 2. Nf3 {[%clk 0:03:02]} 2...
d6 {[%clk 0:02:57.6]} 3. Bc4 {[%clk 0:03:00]} 3... Nf6 {[%clk 0:02:56.2]} 4. d3
{[%clk 0:02:59.5]} 4... Nc6 {[%clk 0:02:54.4]} 5. Be3 {[%clk 0:02:57.9]} 5...
Na5 {[%clk 0:02:54.7]} 6. Nc3 {[%clk 0:02:57.2]} 6... Nxc4 {[%clk 0:02:55.2]} 7.
dxc4 {[%clk 0:02:57.8]} 7... Be6 {[%clk 0:02:53.6]} 8. Nd5 {[%clk 0:02:54.7]}
8... Bxd5 {[%clk 0:02:53.9]} 9. cxd5 {[%clk 0:02:55.1]} 9... c6 {[%clk
0:02:54.3]} 10. dxc6 {[%clk 0:02:54.5]} 10... bxc6 {[%clk 0:02:55.4]} 11. O-O
{[%clk 0:02:52.1]} 11... Nxe4 {[%clk 0:02:54.8]} 12. Qd3 {[%clk 0:02:43.3]}
12... Nc5 {[%clk 0:02:54.1]} 13. Bxc5 {[%clk 0:02:42.4]} 13... dxc5 {[%clk
0:02:54.1]} 14. Qxd8+ {[%clk 0:02:43.6]} 14... Rxd8 {[%clk 0:02:56]} 15. Nxe5
{[%clk 0:02:44]} 15... Bd6 {[%clk 0:02:54.8]} 16. Nxc6 {[%clk 0:02:44]} 16...
Ra8 {[%clk 0:02:52.2]} 17. Rfe1+ {[%clk 0:02:40.5]} 17... Be7 {[%clk 0:02:50.9]}
18. Rxe7+ {[%clk 0:02:39.3]} 18... Kf8 {[%clk 0:02:50.9]} 19. Rae1 {[%clk
0:02:39.5]} 19... Rc8 {[%clk 0:02:49.1]} 20. Nxa7 {[%clk 0:02:36.4]} 20... Ra8
{[%clk 0:02:47.2]} 21. c4 {[%clk 0:02:36.9]} 21... g6 {[%clk 0:02:42.5]} 22. Nc6
{[%clk 0:02:32.5]} 22... Kg7 {[%clk 0:02:40.9]} 23. Ne5 {[%clk 0:02:32.3]} 23...
Kf6 {[%clk 0:02:41.3]} 24. Rxf7+ {[%clk 0:02:31.6]} 24... Kg5 {[%clk 0:02:40.5]}
25. g3 {[%clk 0:02:25.8]} 25... Rhe8 {[%clk 0:02:38.2]} 26. Nf3+ {[%clk
0:02:23.2]} 26... Kg4 {[%clk 0:02:37.5]} 27. Rxe8 {[%clk 0:02:23.5]} 27... Rxe8
{[%clk 0:02:37.3]} 28. h3+ {[%clk 0:02:10.1]} 28... Kh5 {[%clk 0:02:35.8]} 29.
g4+ {[%clk 0:02:10.1]} 29... Kh6 {[%clk 0:02:33.3]} 30. h4 {[%clk 0:02:04.3]}
30... g5 {[%clk 0:02:33.2]} 31. hxg5+ {[%clk 0:02:01.9]} 31... Kg6 {[%clk
0:02:34]} 32. Rf6+ {[%clk 0:01:59.7]} 32... Kg7 {[%clk 0:02:33.3]} 33. Rh6
{[%clk 0:01:59.6]} 33... Kh8 {[%clk 0:02:32.9]} 34. Nh4 {[%clk 0:01:59.8]} 34...
Re1+ {[%clk 0:02:32.5]} 35. Kg2 {[%clk 0:01:59.7]} 35... Re2 {[%clk 0:02:28]}
36. Nf5 {[%clk 0:01:59.5]} 36... Kg8 {[%clk 0:02:26.6]} 37. g6 {[%clk
0:01:50.9]} 37... hxg6 {[%clk 0:02:25.8]} 38. Rxg6+ {[%clk 0:01:51.3]} 38... Kf7
{[%clk 0:02:27.2]} 39. Rh6 {[%clk 0:01:47]} 39... Ke8 {[%clk 0:02:25.8]} 40.
Nd6+ {[%clk 0:01:46.9]} 40... Kd7 {[%clk 0:02:25.5]} 41. g5 {[%clk 0:01:41.9]}
41... Re5 {[%clk 0:02:14.6]} 42. Nf7 {[%clk 0:01:38.9]} 42... Re7 {[%clk
0:02:12.9]} 43. Rd6+ {[%clk 0:01:39]} 43... Ke8 {[%clk 0:02:11.8]} 44. Rd8+
{[%clk 0:01:36.5]} 44... Kxf7 {[%clk 0:02:12]} 45. a4 {[%clk 0:01:32.2]} 45...
Re5 {[%clk 0:02:07]} 46. a5 {[%clk 0:01:29.1]} 46... Rxg5+ {[%clk 0:02:06.7]}
47. Kf1 {[%clk 0:01:26.1]} 47... Rg6 {[%clk 0:02:07]} 48. Rd7+ {[%clk 0:01:22]}
48... Ke8 {[%clk 0:02:05.5]} 49. Rc7 {[%clk 0:01:21.4]} 49... Ra6 {[%clk
0:02:04.9]} 50. Rxc5 {[%clk 0:01:20.3]} 50... Kd7 {[%clk 0:02:03.3]} 51. b4
{[%clk 0:01:20.1]} 51... Kd6 {[%clk 0:02:02.7]} 52. Rh5 {[%clk 0:01:18.9]} 52...
Ke6 {[%clk 0:02:02.1]} 53. b5 {[%clk 0:01:19.1]} 53... Rxa5 {[%clk 0:02:02.7]}
54. f4 {[%clk 0:01:15.5]} 54... Kf6 {[%clk 0:02:02.4]} 55. Ke2 {[%clk 0:01:09]}
55... Ra2+ {[%clk 0:02:01.9]} 56. Kd3 {[%clk 0:01:09.5]} 56... Ra3+ {[%clk
0:02:02.5]} 57. Kd4 {[%clk 0:01:10.4]} 57... Ra2 {[%clk 0:02:01.5]} 58. b6
{[%clk 0:01:10.3]} 58... Rd2+ {[%clk 0:02:00.2]} 59. Kc5 {[%clk 0:01:10.8]}
59... Rb2 {[%clk 0:01:59.5]} 60. Kc6 {[%clk 0:01:10.1]} 60... Ke7 {[%clk
0:01:59.8]} 61. b7 {[%clk 0:01:10.2]} 61... Kd8 {[%clk 0:02:00.5]} 62. Rh8+
{[%clk 0:01:09.3]} 62... Ke7 {[%clk 0:02:00]} 63. Kc7 {[%clk 0:01:09.3]} 63...
Rc2 {[%clk 0:01:58]} 64. b8=Q {[%clk 0:01:06.1]} 64... Rxc4+ {[%clk 0:01:57.8]}
65. Kb7 {[%clk 0:01:04]} 65... Rb4+ {[%clk 0:01:58]} 66. Kc8 {[%clk 0:01:04.3]}
66... Rc4+ {[%clk 0:01:58.1]} 67. Kb7 {[%clk 0:01:04.2]} 67... Rb4+ {[%clk
0:01:57.5]} 68. Ka7 {[%clk 0:01:02.5]} 68... Ra4+ {[%clk 0:01:58]} 69. Kb7
{[%clk 0:01:02.4]} 69... Rb4+ {[%clk 0:01:58]} 1/2-1